fUST/lending_fUST_20240119
["ID","MTS","AMOUNT","RATE_DAILY","PERIOD"]
[312160569,1705674642205,-176.23526135,0.00028219,2]
[312160570,1705674642217,-1261.29,0.00028219,2]
[312160572,1705674642228,-550.55418385,0.00028219,2]
[312160574,1705674642237,-500.0,0.00028219,2]
[312160576,1705674642247,-1574.3,0.00028219,2]
[312160578,1705674642257,-557.39952533,0.00028219,2]
[312160580,1705674642267,-753.24,0.00028219,2]
[312160582,1705674642276,-707.08,0.00028219,2]
[312160584,1705674642286,-4028.25,0.00028219,2]
[312160586,1705674642296,-500.0,0.00028219,2]
[312160588,1705674642305,-736.6,0.00028219,2]
[312160590,1705674642316,-1344.25,0.00028219,2]
[312160592,1705674642326,-500.0,0.00028219,2]
[312160594,1705674642336,-2448.76,0.00028219,2]
[312160596,1705674642345,-3134.23,0.00028219,2]
[312160598,1705674642354,-500.0,0.00028219,2]
[312160599,1705674642364,-647.31,0.00028219,2]
[312160601,1705674642373,-500.0,0.00028219,2]
[312160603,1705674642383,-1319.54,0.00028219,2]
[312160605,1705674642393,-628.07,0.00028219,2]
[312160607,1705674642403,-7972.49,0.00028219,2]
[312160609,1705674642412,-13643.79,0.00028219,2]
[312160611,1705674642422,-500.0,0.00028219,2]
[312160613,1705674642431,-500.0,0.00028219,2]
[312160615,1705674642440,-500.0,0.00028219,2]
[312160617,1705674642450,-719.66,0.00028219,2]
[312160619,1705674642460,-2615.38,0.00028219,2]
[312160621,1705674642470,-932.02,0.00028219,2]
[312160623,1705674642480,-667.15,0.00028219,2]
[312160625,1705674642489,-945.85,0.00028219,2]
[312160627,1705674642498,-2744.89,0.00028219,2]
[312160628,1705674642508,-507.87,0.00028219,2]
[312160630,1705674642517,-1305.42,0.00028219,2]
[312160632,1705674642527,-500.0,0.00028219,2]
[312160634,1705674642536,-167.3,0.00028219,2]
[312160636,1705674642546,-514.89,0.00028219,2]
[312160638,1705674642556,-500.0,0.00028219,2]
[312160640,1705674642566,-500.0,0.00028219,2]
[312160642,1705674642576,-500.0,0.00028219,2]
[312160644,1705674642586,-557.05,0.00028219,2]
[312160646,1705674642595,-156.54004736,0.00028438,4]
[312160648,1705674642605,-220.77218194,0.00028438,4]
[312160650,1705674642617,-5000.0,0.00028439,5]
[312160652,1705674642627,-50000.0,0.00028439,4]
[312160654,1705674642638,-62063.52582223,0.00028439,4]
[312160656,1705674642648,-5000.0,0.00028439,5]
[312160657,1705674642658,-9937.81726944,0.00028439,3]
[312160659,1705674642668,-5000.0,0.00028439,5]
[312160661,1705674642677,-95345.19223807,0.00028439,4]
[312160663,1705674642687,-500.0,0.00028493,2]
[312160665,1705674642696,-500.0,0.00028493,2]
[312160667,1705674642706,-500.0,0.00028493,2]
[312160669,1705674642718,-500.0,0.00028493,2]
[312160671,1705674642729,-309.81662381,0.00028493,2]
[312160673,1705674642738,-500.0,0.00028493,2]
[312160675,1705674642747,-500.0,0.00028493,2]
[312160677,1705674642757,-529.14,0.00028493,2]
[312160679,1705674642766,-500.0,0.00028493,2]
[312160681,1705674642776,-1261.29,0.00028493,2]
[312160683,1705674642786,-505.48559995,0.00028493,2]
[312160685,1705674642796,-1574.3,0.00028493,2]
[312160687,1705674642806,-753.24,0.00028493,2]
[312160688,1705674642816,-707.08,0.00028493,2]
[312160690,1705674642826,-4028.25,0.00028493,2]
[312160692,1705674642836,-500.0,0.00028493,2]
[312160694,1705674642846,-736.6,0.00028493,2]
[312160696,1705674642856,-1344.25,0.00028493,2]
[312160698,1705674642866,-500.0,0.00028493,2]
[312160700,1705674642875,-2448.76,0.00028493,2]
[312160702,1705674642885,-3134.23,0.00028493,2]
[312160704,1705674642894,-500.0,0.00028493,2]
[312160706,1705674642904,-647.31,0.00028493,2]
[312160708,1705674642914,-476.44411787,0.00028493,2]
[312160710,1705674642924,-1319.54,0.00028493,2]
[312160712,1705674642933,-628.07,0.00028493,2]
[312160714,1705674642942,-7972.49,0.00028493,2]
[312160716,1705674642952,-13643.79,0.00028493,2]
[312160717,1705674642962,-424.76,0.00028493,2]
[312160719,1705674642972,-500.0,0.00028493,2]
[312160721,1705674642982,-500.0,0.00028493,2]
[312160723,1705674642992,-719.66,0.00028493,2]
[312160725,1705674643002,-2615.38,0.00028493,2]
[312160727,1705674643012,-932.02,0.00028493,2]
[312160729,1705674643022,-667.15,0.00028493,2]
[312160731,1705674643032,-945.85,0.00028493,2]
[312160733,1705674643042,-2744.89,0.00028493,2]
[312160735,1705674643051,-1305.42,0.00028493,2]
[312160737,1705674643061,-500.0,0.00028493,2]
[312160739,1705674643071,-514.89,0.00028493,2]
[312160741,1705674643080,-500.0,0.00028493,2]
[312160743,1705674643089,-500.0,0.00028493,2]
[312160745,1705674643099,-500.0,0.00028493,2]
[312160747,1705674643109,-557.05,0.00028493,2]
[312160749,1705674643118,-174.21849779,0.00028623,2]
[312160751,1705674643128,-38560.35367316,0.00028667,2]
[312160753,1705674643137,-37420.05294755,0.000287,2]
[312160775,1705674643217,-10202.84952288,0.000287,2]
[312160780,1705674643228,-833.41994114,0.000287,2]
[312160813,1705674643356,-1468.00454349,0.00025103,2]
[312160817,1705674643367,-4068.75,0.00027387,3]
[312160820,1705674643377,-500.0,0.00027397,2]
[312160824,1705674643387,-500.0,0.00027671,2]
[312160827,1705674643397,-500.0,0.00027945,2]
[312160829,1705674643406,-500.0,0.00028219,2]
[312160832,1705674643415,-194.18283354,0.00028493,2]
[312160835,1705674643425,-1486.27367015,0.000287,2]
[312160839,1705674643439,-12038.46061979,0.000287,2]
[312160844,1705674643453,-7578.53761067,0.000287,2]
[312160847,1705674643469,-25925.18567695,0.000287,2]
[312160851,1705674643483,-34476.45400405,0.000287,2]
[312160916,1705674643826,-465.7143465,0.00027397,2]
[312160920,1705674643839,-34.2856535,0.00027397,2]
[312160922,1705674643849,-256.7433465,0.00027671,2]
[312166177,1705675450848,5000.0,0.000251,10]
[312166178,1705675459403,1517.51938433,0.000251,10]
[312166179,1705675638090,-399.510005,0.00024638,2]
[312166180,1705675638113,-154.82968734,0.00024827,2]
[312166181,1705675638135,-154.82968734,0.00024827,2]
[312166182,1705675638159,-1511.22406229,0.00024828,2]
[312166183,1705675638187,-925.29630639,0.00024836,2]
[312166226,1705675832886,-163.683533,0.0002397,2]
[312166227,1705675832898,-787.34773645,0.00024735,2]
[312166229,1705675832911,-179.48737399,0.00024736,2]
[312166231,1705675832923,-155.10832506,0.00024834,2]
[312166233,1705675832935,-49074.70369361,0.00024836,2]
[312166235,1705675832947,-547.67132072,0.00024836,2]
[312166237,1705675832959,-763.6737386,0.000251,2]
[312166239,1705675832971,-6706.86,0.00025514,3]
[312166240,1705675832984,-5589.05,0.00025514,3]
[312166241,1705675832996,-24900.0,0.00025524,2]
[312166242,1705675833007,-498.00832139,0.00026025,5]
[312166243,1705675833020,-200.0,0.00026077,7]
[312166244,1705675833031,-620.34252804,0.000264,2]
[312166245,1705675833043,-1896.51810256,0.000266,2]
[312166246,1705675833190,-1500.0,0.00027,2]
[312166247,1705675833204,-194.73467439,0.00027297,2]
[312166248,1705675833218,-171.22120977,0.00027368,2]
[312166249,1705675833228,-639.15057473,0.00027395,2]
[312166250,1705675833237,-166.3955963,0.00027395,2]
[312166251,1705675833248,-703.25542982,0.00027395,2]
[312166252,1705675833257,-272.42186695,0.00027395,2]
[312166253,1705675833268,-873.86173983,0.00027395,2]
[312166254,1705675833278,-1589.24944099,0.00027395,2]
[312166255,1705675833288,-323.39599469,0.00027395,2]
[312166256,1705675833298,-241.064942,0.00027395,2]
[312166257,1705675833308,-588.89361079,0.00027396,2]
[312166258,1705675833317,-500.0,0.00027397,2]
[312166259,1705675833327,-391.31701219,0.00027397,2]
[312166260,1705675833337,-500.0,0.00027397,2]
[312166261,1705675833347,-500.0,0.00027397,2]
[312166262,1705675833356,-500.0,0.00027397,2]
[312166263,1705675833367,-500.0,0.00027397,2]
[312166265,1705675833376,-500.0,0.00027397,2]
[312166267,1705675833387,-559.08,0.00027397,2]
[312166269,1705675833397,-500.0,0.00027397,2]
[312166271,1705675833406,-500.0,0.00027397,2]
[312166273,1705675833418,-500.0,0.00027397,2]
[312166275,1705675833428,-500.0,0.00027397,2]
[312166277,1705675833437,-500.0,0.00027397,2]
[312166279,1705675833447,-500.0,0.00027397,2]
[312166281,1705675833456,-500.0,0.00027397,2]
[312166283,1705675833465,-500.0,0.00027397,2]
[312166285,1705675833475,-568.55,0.00027397,2]
[312166287,1705675833484,-500.0,0.00027397,2]
[312166289,1705675833493,-500.0,0.00027397,2]
[312166291,1705675833503,-500.0,0.00027397,2]
[312166293,1705675833513,-500.0,0.00027397,2]
[312166295,1705675833522,-532.61493701,0.00027397,2]
[312166297,1705675833531,-693.97,0.00027397,2]
[312166299,1705675833540,-500.0,0.00027397,2]
[312166301,1705675833549,-343.75193125,0.00027397,2]
[312166303,1705675833559,-500.0,0.00027397,2]
[312166305,1705675833568,-1303.02,0.00027397,2]
[312166307,1705675833577,-500.0,0.00027397,2]
[312166309,1705675833586,-500.0,0.00027397,2]
[312166311,1705675833595,-420.57604732,0.00027397,2]
[312166313,1705675833605,-509.45,0.00027397,2]
[312166315,1705675833614,-500.0,0.00027397,2]
[312166317,1705675833624,-1743.07,0.00027397,2]
[312166318,1705675833634,-500.0,0.00027397,2]
[312166321,1705675833643,-500.0,0.00027397,2]
[312166322,1705675833653,-500.0,0.00027397,2]
[312166324,1705675833664,-500.0,0.00027397,2]
[312166326,1705675833674,-500.0,0.00027397,2]
[312166328,1705675833684,-740.42,0.00027397,2]
[312166330,1705675833693,-500.0,0.00027397,2]
[312166332,1705675833703,-500.0,0.00027397,2]
[312166334,1705675833713,-500.0,0.00027397,2]
[312166337,1705675833725,-512.03505382,0.00027397,2]
[312166339,1705675833735,-500.0,0.00027397,2]
[312166340,1705675833744,-500.0,0.00027397,2]
[312166342,1705675833754,-500.0,0.00027397,2]
[312166344,1705675833764,-396.41630454,0.00027397,2]
[312166346,1705675833774,-500.0,0.00027397,2]
[312166348,1705675833785,-160.40654187,0.00027397,2]
[312166350,1705675833795,-500.0,0.00027397,2]
[312166352,1705675833805,-500.0,0.00027397,2]
[312166354,1705675833814,-500.0,0.00027397,2]
[312166356,1705675833824,-500.0,0.00027397,2]
[312166358,1705675833834,-500.0,0.00027397,2]
[312166360,1705675833843,-500.0,0.00027397,2]
[312166362,1705675833853,-500.0,0.00027397,2]
[312166364,1705675833862,-561.80647202,0.00027397,2]
[312166366,1705675833873,-500.0,0.00027397,2]
[312166368,1705675833883,-501.52733397,0.00027397,2]
[312166370,1705675833893,-500.0,0.00027397,2]
[312166372,1705675833903,-377.33214796,0.00027397,2]
[312166425,1705675838813,-541.94771986,0.00023969,2]
[312166432,1705675838882,-245.40001659,0.00023969,2]
[312166434,1705675838893,-122.66785204,0.00027397,2]
[312166436,1705675838903,-500.0,0.00027397,2]
[312166437,1705675838913,-500.0,0.00027397,2]
[312166438,1705675838924,-502.00456235,0.00027397,2]
[312166439,1705675838934,-806.25,0.00027397,2]
[312166441,1705675838944,-505.29565401,0.00027397,2]
[312166442,1705675838954,-4557.59,0.00027397,2]
[312166443,1705675838964,-500.0,0.00027397,2]
[312166445,1705675838973,-500.0,0.00027397,2]
[312166446,1705675838983,-500.0,0.00027397,2]
[312166448,1705675838993,-811.37,0.00027397,2]
[312166450,1705675839003,-500.0,0.00027397,2]
[312166452,1705675839012,-500.0,0.00027397,2]
[312166454,1705675839022,-721.18,0.00027397,2]
[312166456,1705675839031,-514.26450996,0.00027397,2]
[312166458,1705675839040,-509.74467699,0.00027397,2]
[312166460,1705675839050,-503.50962741,0.00027397,2]
[312166462,1705675839059,-500.0,0.00027397,2]
[312166464,1705675839069,-500.0,0.00027397,2]
[312166466,1705675839079,-500.0,0.00027397,2]
[312166468,1705675839088,-500.0,0.00027397,2]
[312166470,1705675839098,-500.0,0.00027397,14]
[312166472,1705675839107,-500.0,0.00027397,2]
[312166474,1705675839116,-1577.97,0.00027397,2]
[312166476,1705675839126,-3052.55,0.00027397,2]
[312166478,1705675839135,-500.0,0.00027397,2]
[312166480,1705675839145,-3795.57,0.00027397,2]
[312166482,1705675839155,-500.0,0.00027397,2]
[312166484,1705675839165,-500.0,0.00027397,2]
[312166486,1705675839176,-500.0,0.00027397,2]
[312166488,1705675839186,-500.0,0.00027397,2]
[312166490,1705675839196,-605.73,0.00027397,2]
[312166492,1705675839206,-500.0,0.00027397,2]
[312166494,1705675839216,-454.086,0.00027397,2]
[312166496,1705675839226,-500.0,0.00027397,2]
[312166499,1705675839236,-500.0,0.00027397,2]
[312166501,1705675839246,-500.0,0.00027397,2]
[312166503,1705675839256,-500.0,0.00027397,2]
[312166504,1705675839266,-17234.78,0.00027397,2]
[312166507,1705675839276,-500.0,0.00027397,2]
[312166508,1705675839287,-500.0,0.00027397,2]
[312166510,1705675839296,-500.0,0.00027397,2]
[312166512,1705675839307,-3133.27,0.00027397,2]
[312166514,1705675839316,-500.0,0.00027397,2]
[312166516,1705675839326,-500.0,0.00027397,2]
[312166518,1705675839336,-500.0,0.00027397,2]
[312166521,1705675839346,-8546.08,0.00027397,2]
[312166523,1705675839356,-500.0,0.00027397,2]
[312166525,1705675839366,-823.09,0.00027397,2]
[312166526,1705675839375,-500.70177559,0.00027397,2]
[312166529,1705675839386,-500.0,0.00027397,2]
[312166531,1705675839395,-500.0,0.00027397,2]
[312166532,1705675839406,-500.0,0.00027397,2]
[312166535,1705675839416,-500.0,0.00027397,2]
[312166537,1705675839428,-501.48231904,0.00027397,2]
[312166538,1705675839438,-500.0,0.00027397,2]
[312166540,1705675839447,-500.0,0.00027397,2]
[312166542,1705675839458,-500.0,0.00027397,2]
[312166544,1705675839468,-500.0,0.00027397,2]
[312166546,1705675839478,-500.0,0.00027397,2]
[312166548,1705675839488,-500.0,0.00027397,2]
[312166550,1705675839498,-1586.07,0.00027397,2]
[312166553,1705675839508,-500.0,0.00027397,2]
[312166555,1705675839518,-785.26,0.00027397,2]
[312166557,1705675839528,-500.0,0.00027397,2]
[312166558,1705675839538,-500.0,0.00027397,2]
[312166560,1705675839548,-500.0,0.00027397,2]
[312166562,1705675839558,-500.0,0.00027397,2]
[312166564,1705675839569,-500.0,0.00027397,2]
[312166567,1705675839580,-570.6,0.00027397,2]
[312166569,1705675839590,-500.0,0.00027397,2]
[312166571,1705675839600,-500.0,0.00027397,2]
[312166573,1705675839613,-500.0,0.00027397,2]
[312166575,1705675839623,-1245.74,0.00027397,2]
[312166576,1705675839633,-500.0,0.00027397,2]
[312166579,1705675839644,-500.0,0.00027397,2]
[312166581,1705675839654,-3543.24,0.00027397,2]
[312166583,1705675839665,-500.0,0.00027397,2]
[312166584,1705675839681,-500.0,0.00027397,2]
[312166587,1705675839692,-518.51183488,0.00027397,2]
[312166589,1705675839703,-500.0,0.00027397,2]
[312166591,1705675839714,-500.0,0.00027397,2]
[312166593,1705675839724,-500.0,0.00027397,2]
[312166595,1705675839735,-500.0,0.00027397,2]
[312166597,1705675839746,-500.0,0.00027397,2]
[312166599,1705675839756,-638.36,0.00027397,2]
[312166601,1705675839766,-500.0,0.00027397,2]
[312166603,1705675839776,-500.0,0.00027397,2]
[312166605,1705675839786,-500.0,0.00027397,2]
[312166607,1705675839797,-500.91282911,0.00027397,2]
[312166608,1705675839806,-532.85,0.00027397,2]
[312166611,1705675839816,-503.69616097,0.00027397,2]
[312166613,1705675839826,-504.17788797,0.00027397,2]
[312166614,1705675839837,-500.0,0.00027397,2]
[312166616,1705675839847,-500.0,0.00027397,2]
[312166618,1705675839857,-500.0,0.00027397,2]
[312166621,1705675839867,-500.0,0.00027397,2]
[312166622,1705675839877,-500.0,0.00027397,2]
[312166624,1705675839886,-1024.49,0.00027397,2]
[312166626,1705675839896,-500.0,0.00027397,2]
[312166629,1705675839906,-500.0,0.00027397,2]
[312166630,1705675839915,-500.0,0.00027397,2]
[312166632,1705675839928,-500.0,0.00027397,2]
[312166634,1705675839938,-615.17,0.00027397,2]
[312166636,1705675839948,-500.0,0.00027397,2]
[312166638,1705675839957,-500.0,0.00027397,2]
[312166640,1705675839967,-500.0,0.00027397,2]
[312166642,1705675839976,-500.0,0.00027397,2]
[312166644,1705675839986,-1354.34,0.00027397,2]
[312166646,1705675839996,-1434.71,0.00027397,2]
[312166648,1705675840005,-500.0,0.0002767,2]
[312166650,1705675840015,-500.0,0.0002767,2]
[312166652,1705675840025,-500.0,0.0002767,2]
[312166654,1705675840034,-600.96374948,0.0002767,2]
[312166656,1705675840044,-216.17431989,0.0002767,2]
[312166667,1705675840137,-240.38549978,0.0002767,2]
[312166669,1705675840147,-500.0,0.0002767,2]
[312166671,1705675840157,-500.0,0.0002767,2]
[312166673,1705675840168,-1273.29555953,0.00027671,2]
[312166675,1705675840178,-308.48179,0.00027671,2]
[312166677,1705675840188,-225.08432184,0.00027671,2]
[312166679,1705675840198,-3215.46147441,0.00027671,2]
[312166681,1705675840209,-261.40839953,0.00027671,2]
[312166683,1705675840218,-500.0,0.00027671,2]
[312166685,1705675840229,-500.0,0.00027671,2]
[312166687,1705675840238,-559.08,0.00027671,2]
[312166689,1705675840247,-500.0,0.00027671,2]
[312166691,1705675840257,-503.6037089,0.00027671,2]
[312166693,1705675840266,-514.29,0.00027671,2]
[312166695,1705675840276,-500.0,0.00027671,2]
[312166697,1705675840285,-500.0,0.00027671,2]
[312166699,1705675840296,-568.55,0.00027671,2]
[312166701,1705675840305,-500.0,0.00027671,2]
[312166703,1705675840315,-587.13,0.00027671,2]
[312166705,1705675840325,-693.97,0.00027671,2]
[312166707,1705675840335,-500.0,0.00027671,2]
[312166709,1705675840346,-500.0,0.00027671,2]
[312166711,1705675840355,-500.0,0.00027671,2]
[312166713,1705675840364,-509.45,0.00027671,2]
[312166715,1705675840374,-1743.07,0.00027671,2]
[312166717,1705675840383,-500.0,0.00027671,2]
[312166719,1705675840392,-155.38504427,0.00027671,2]
[312166721,1705675840402,-154.9690062,0.00027671,2]
[312166723,1705675840411,-2170.1294719,0.00027671,2]
[312166725,1705675840422,-500.0,0.00027671,2]
[312166727,1705675840431,-44992.97277691,0.00027671,7]
[312166729,1705675840441,-500.0,0.00027671,2]
[312166731,1705675840451,-740.42,0.00027671,2]
[312166733,1705675840460,-500.0,0.00027671,2]
[312166735,1705675840469,-500.0,0.00027671,2]
[312166737,1705675840479,-500.0,0.00027671,2]
[312166739,1705675840489,-500.0,0.00027671,2]
[312166741,1705675840498,-500.0,0.00027671,2]
[312166743,1705675840508,-500.0,0.00027671,2]
[312166744,1705675840518,-500.0,0.00027671,2]
[312166747,1705675840528,-500.0,0.00027671,2]
[312166749,1705675840538,-500.0,0.00027671,2]
[312166751,1705675840548,-500.0,0.00027671,2]
[312166753,1705675840557,-500.0,0.00027671,2]
[312166755,1705675840567,-500.0,0.00027671,2]
[312166757,1705675840577,-500.0,0.00027671,2]
[312166759,1705675840587,-806.25,0.00027671,2]
[312166761,1705675840596,-4557.59,0.00027671,2]
[312166763,1705675840606,-500.0,0.00027671,2]
[312166765,1705675840616,-500.0,0.00027671,2]
[312166767,1705675840626,-501.42981573,0.00027671,2]
[312166769,1705675840636,-811.37,0.00027671,2]
[312166771,1705675840645,-500.0,0.00027671,2]
[312166773,1705675840655,-721.18,0.00027671,2]
[312166774,1705675840664,-500.0,0.00027671,2]
[312166777,1705675840676,-500.0,0.00027671,2]
[312166779,1705675840686,-1577.97,0.00027671,2]
[312166781,1705675840695,-3052.55,0.00027671,2]
[312166783,1705675840705,-500.0,0.00027671,2]
[312166785,1705675840715,-3795.57,0.00027671,2]
[312166787,1705675840724,-500.0,0.00027671,2]
[312166789,1705675840734,-500.0,0.00027671,2]
[312166791,1705675840744,-500.0,0.00027671,2]
[312166793,1705675840754,-505.22432973,0.00027671,2]
[312166795,1705675840764,-605.73,0.00027671,2]
[312166797,1705675840774,-500.0,0.00027671,2]
[312166799,1705675840784,-500.0,0.00027671,2]
[312166801,1705675840794,-500.0,0.00027671,2]
[312166803,1705675840803,-17234.78,0.00027671,2]
[312166805,1705675840813,-500.0,0.00027671,2]
[312166807,1705675840823,-3133.27,0.00027671,2]
[312166809,1705675840833,-500.0,0.00027671,2]
[312166811,1705675840843,-500.0,0.00027671,2]
[312166813,1705675840852,-500.0,0.00027671,2]
[312166815,1705675840862,-8546.08,0.00027671,2]
[312166817,1705675840871,-500.0,0.00027671,2]
[312166819,1705675840881,-823.09,0.00027671,2]
[312166821,1705675840891,-500.0,0.00027671,2]
[312166822,1705675840900,-500.0,0.00027671,2]
[312166824,1705675840910,-500.0,0.00027671,2]
[312166827,1705675840921,-500.0,0.00027671,2]
[312166828,1705675840931,-500.0,0.00027671,2]
[312166831,1705675840942,-500.0,0.00027671,2]
[312166832,1705675840952,-500.0,0.00027671,2]
[312166834,1705675840961,-1586.07,0.00027671,2]
[312166836,1705675840971,-785.26,0.00027671,2]
[312166837,1705675840982,-505.94154697,0.00027671,2]
[312166838,1705675840993,-570.6,0.00027671,2]
[312166839,1705675841003,-500.0,0.00027671,2]
[312166840,1705675841013,-1245.74,0.00027671,2]
[312166841,1705675841024,-500.0,0.00027671,2]
[312166842,1705675841034,-3543.24,0.00027671,2]
[312166843,1705675841043,-500.0,0.00027671,2]
[312166844,1705675841054,-500.0,0.00027671,2]
[312166846,1705675841071,-638.36,0.00027671,2]
[312166847,1705675841088,-500.0,0.00027671,2]
[312166848,1705675841097,-500.0,0.00027671,2]
[312166849,1705675841107,-532.85,0.00027671,2]
[312166850,1705675841116,-558.29816808,0.00027671,2]
[312166851,1705675841126,-500.0,0.00027671,2]
[312166853,1705675841135,-500.0,0.00027671,2]
[312166855,1705675841145,-500.0,0.00027671,2]
[312166857,1705675841159,-1024.49,0.00027671,2]
[312166859,1705675841178,-500.0,0.00027671,2]
[312166861,1705675841188,-500.0,0.00027671,2]
[312166863,1705675841198,-500.0,0.00027671,2]
[312166865,1705675841209,-615.17,0.00027671,2]
[312166868,1705675841219,-500.0,0.00027671,2]
[312166871,1705675841231,-500.0,0.00027671,2]
[312166873,1705675841241,-500.0,0.00027671,2]
[312166875,1705675841250,-1434.71,0.00027671,2]
[312166877,1705675841261,-1354.34,0.00027671,2]
[312166879,1705675841270,-327.9954237,0.00027671,2]
[312166882,1705675841280,-457.5024889,0.00027671,2]
[312166884,1705675841290,-417.7674032,0.00027671,2]
[312166887,1705675841301,-401.679406,0.00027671,2]
[312166889,1705675841311,-620.0171264,0.0002772,2]
[312166892,1705675841320,-155.0,0.000278,2]
[312166895,1705675841330,-194.73467439,0.00027818,2]
[312166897,1705675841339,-407.17228242,0.00027844,4]
[312166900,1705675841349,-475.01653594,0.00027844,4]
[312166904,1705675841358,-500.0,0.00027844,4]
[312166907,1705675841368,-521.80015784,0.00027844,4]
[312166909,1705675841378,-235.90727314,0.00027844,4]
[312166912,1705675841387,-377.622,0.00027844,2]
[312166915,1705675841398,-210930.54540321,0.00027845,2]
[312166917,1705675841409,-500.0,0.00027944,2]
[312166919,1705675841420,-500.0,0.00027944,2]
[312166921,1705675841429,-500.0,0.00027944,2]
[312166923,1705675841439,-564.54418385,0.00027945,2]
[312166925,1705675841449,-559.08,0.00027945,2]
[312166928,1705675841458,-500.0,0.00027945,2]
[312166931,1705675841467,-500.0,0.00027945,2]
[312166934,1705675841476,-500.0,0.00027945,2]
[312166937,1705675841485,-568.55,0.00027945,2]
[312166939,1705675841494,-500.0,0.00027945,2]
[312166943,1705675841504,-693.97,0.00027945,2]
[312166945,1705675841514,-500.0,0.00027945,2]
[312166948,1705675841524,-253.83,0.00027945,2]
[312166951,1705675841535,-509.45,0.00027945,2]
[312166954,1705675841545,-1743.07,0.00027945,2]
[312166957,1705675841555,-500.0,0.00027945,2]
[312166961,1705675841565,-500.0,0.00027945,2]
[312166964,1705675841575,-740.42,0.00027945,2]
[312166967,1705675841585,-500.0,0.00027945,2]
[312166970,1705675841595,-500.0,0.00027945,2]
[312166972,1705675841604,-500.0,0.00027945,2]
[312166975,1705675841614,-500.0,0.00027945,2]
[312166978,1705675841625,-500.0,0.00027945,2]
[312166981,1705675841635,-500.0,0.00027945,2]
[312166984,1705675841645,-500.0,0.00027945,2]
[312166987,1705675841655,-500.0,0.00027945,2]
[312166990,1705675841665,-806.25,0.00027945,2]
[312166993,1705675841678,-4557.59,0.00027945,2]
[312166996,1705675841688,-500.0,0.00027945,2]
[312167000,1705675841698,-811.37,0.00027945,2]
[312167003,1705675841708,-500.0,0.00027945,2]
[312167005,1705675841718,-721.18,0.00027945,2]
[312167008,1705675841727,-291.68044868,0.00027945,2]
[312167011,1705675841737,-1577.97,0.00027945,2]
[312167014,1705675841746,-3052.55,0.00027945,2]
[312167017,1705675841756,-195.13006796,0.00027945,2]
[312167020,1705675841765,-3795.57,0.00027945,2]
[312167023,1705675841775,-514.50148046,0.00027945,2]
[312167026,1705675841785,-500.0,0.00027945,2]
[312167030,1705675841795,-500.0,0.00027945,2]
[312167032,1705675841805,-605.73,0.00027945,2]
[312167036,1705675841815,-500.0,0.00027945,2]
[312167039,1705675841825,-500.0,0.00027945,2]
[312167042,1705675841835,-17234.78,0.00027945,2]
[312167045,1705675841844,-500.0,0.00027945,2]
[312167047,1705675841853,-3133.27,0.00027945,2]
[312167050,1705675841863,-500.0,0.00027945,2]
[312167054,1705675841873,-500.0,0.00027945,2]
[312167057,1705675841883,-500.0,0.00027945,2]
[312167060,1705675841893,-8546.08,0.00027945,2]